fUST/lending_fUST_20260306
["ID","MTS","AMOUNT","RATE_DAILY","PERIOD"]
[407750158,1772748646185,-10260.53741795,5.818e-05,2]
[407750242,1772749832218,-564.74247239,4.642e-05,2]
[407750246,1772749832245,-92.31468701,4.642e-05,2]
[407750250,1772749832267,-363.06135295,5.313e-05,2]
[407750315,1772749838368,-254.3413362,5.394e-05,2]
[407750316,1772749838378,-389.0,5.421e-05,2]
[407750317,1772749838387,-618.67839894,5.422e-05,2]
[407750318,1772749838400,-19.32160106,5.422e-05,2]
[407750319,1772749838410,-731.0,5.422e-05,2]
[407750320,1772749838703,-365.391,5.422e-05,2]
[407750321,1772749838844,-433.0,5.422e-05,2]
[407750322,1772749838875,-153.20683107,5.6e-05,2]
[407750323,1772749838887,-158.22090259,5.6e-05,2]
[407750324,1772749838896,-7700.11811275,5.6e-05,2]
[407750389,1772749843372,-333.56339567,5.26e-05,2]
[407750390,1772749843382,-1695.6444829,5.6e-05,2]
[407750391,1772749843394,-849.78408493,5.6e-05,2]
[407750392,1772749843405,-359.66901507,5.6e-05,2]
[407750393,1772749843487,-1119.46594996,5.6e-05,2]
[407750425,1772749846367,-27068.67334768,5.6e-05,2]
[407750426,1772749846379,-8980.26749892,5.6e-05,2]
[407750427,1772749863037,-300.0,5.599e-05,2]
[407750428,1772749863060,-300.0,5.6e-05,2]
[407750429,1772749863075,-619.354,5.6e-05,2]
[407750435,1772749950269,3257.0,4.5e-07,2]
[407750476,1772751032415,-287.42980419,4.738e-05,2]
[407750478,1772751032425,-252.1276001,4.786e-05,2]
[407750480,1772751032434,-322.03231627,4.81e-05,2]
[407750481,1772751032445,-500.0,4.81e-05,2]
[407750482,1772751032454,-522.27538586,4.81e-05,2]
[407750483,1772751032463,-379.52490609,5.479e-05,2]
[407750484,1772751032472,-539.31,5.564e-05,2]
[407750485,1772751032481,-365.2623906,5.564e-05,2]
[407750496,1772751038456,-67.7376094,5.564e-05,2]
[407750497,1772751038466,-151.0,5.597e-05,2]
[407750498,1772751038475,-1200.0,5.698e-05,2]
[407750499,1772751038485,-500.0,5.698e-05,2]
[407750500,1772751038494,-500.0,5.698e-05,2]
[407750501,1772751038503,-500.0,5.698e-05,2]
[407750502,1772751038512,-338.77560294,5.698e-05,2]
[407750516,1772751043514,-161.22439706,5.698e-05,2]
[407750517,1772751043524,-500.0,5.698e-05,2]
[407750518,1772751043534,-145.76687848,5.698e-05,2]
[407750520,1772751046389,-354.23312152,5.698e-05,2]
[407750521,1772751046399,-500.0,5.698e-05,2]
[407750522,1772751046409,-403.914669,5.698e-05,2]
[407750523,1772751046418,-500.0,5.698e-05,2]
[407750524,1772751046427,-500.0,5.698e-05,2]
[407750525,1772751046436,-500.0,5.698e-05,2]
[407750526,1772751046446,-430.43932846,5.698e-05,2]
[407750527,1772751046455,-500.0,5.698e-05,2]
[407750528,1772751046464,-500.0,5.698e-05,2]
[407750529,1772751046473,-500.0,5.698e-05,2]
[407750530,1772751046482,-500.0,5.698e-05,2]
[407750531,1772751046492,-500.0,5.698e-05,2]
[407750532,1772751046503,-465.41517081,5.698e-05,2]
[407750533,1772751046514,-500.0,5.698e-05,2]
[407750534,1772751046524,-500.0,5.698e-05,2]
[407750535,1772751046534,-500.0,5.698e-05,2]
[407750536,1772751046545,-500.0,5.698e-05,2]
[407750537,1772751046554,-500.0,5.698e-05,2]
[407750538,1772751046563,-500.0,5.698e-05,2]
[407750539,1772751046572,-500.0,5.698e-05,2]
[407750540,1772751046581,-170.42941172,5.698e-05,2]
[407750542,1772751046591,-500.0,5.698e-05,2]
[407750543,1772751046602,-500.0,5.698e-05,2]
[407750544,1772751046611,-500.0,5.698e-05,2]
[407750545,1772751046621,-500.0,5.698e-05,2]
[407750546,1772751046632,-500.0,5.698e-05,2]
[407750547,1772751046643,-519.4485306,5.698e-05,2]
[407750548,1772751046653,-500.0,5.698e-05,2]
[407750549,1772751046662,-500.0,5.698e-05,2]
[407750550,1772751046671,-500.0,5.698e-05,2]
[407750551,1772751046681,-500.0,5.698e-05,2]
[407750552,1772751046693,-500.0,5.698e-05,2]
[407750553,1772751046702,-500.0,5.698e-05,2]
[407750554,1772751046711,-500.0,5.698e-05,2]
[407750555,1772751046721,-500.0,5.698e-05,2]
[407750556,1772751046731,-500.0,5.698e-05,2]
[407750557,1772751046740,-500.0,5.698e-05,2]
[407750558,1772751046749,-500.0,5.698e-05,2]
[407750559,1772751046759,-500.0,5.698e-05,2]
[407750560,1772751046769,-500.0,5.698e-05,2]
[407750561,1772751046778,-500.0,5.698e-05,2]
[407750562,1772751046787,-500.0,5.698e-05,2]
[407750563,1772751046796,-500.0,5.698e-05,2]
[407750564,1772751046805,-500.0,5.698e-05,2]
[407750565,1772751046815,-500.0,5.698e-05,2]
[407750566,1772751046824,-500.0,5.698e-05,2]
[407750567,1772751046835,-500.0,5.698e-05,2]
[407750568,1772751046844,-500.0,5.698e-05,2]
[407750569,1772751046853,-500.0,5.698e-05,2]
[407750570,1772751046863,-500.0,5.698e-05,2]
[407750571,1772751046872,-500.0,5.698e-05,2]
[407750572,1772751046882,-500.0,5.698e-05,2]
[407750573,1772751046891,-500.0,5.698e-05,2]
[407750574,1772751046900,-500.0,5.698e-05,2]
[407750575,1772751046909,-500.0,5.698e-05,2]
[407750576,1772751046919,-500.0,5.698e-05,2]
[407750577,1772751046928,-500.0,5.698e-05,2]
[407750578,1772751046937,-500.0,5.698e-05,2]
[407750579,1772751046946,-500.0,5.698e-05,2]
[407750580,1772751046955,-500.0,5.698e-05,2]
[407750581,1772751046965,-500.0,5.698e-05,2]
[407750582,1772751046974,-500.0,5.698e-05,2]
[407750583,1772751046983,-500.0,5.698e-05,2]
[407750584,1772751046992,-500.0,5.698e-05,2]
[407750585,1772751047001,-500.0,5.698e-05,2]
[407750586,1772751047010,-406.25890471,5.698e-05,2]
[407750587,1772751047019,-500.0,5.698e-05,2]
[407750588,1772751047028,-500.0,5.698e-05,2]
[407750589,1772751047037,-500.0,5.698e-05,2]
[407750590,1772751047046,-500.0,5.698e-05,2]
[407750591,1772751047055,-500.0,5.698e-05,2]
[407750592,1772751047065,-500.0,5.698e-05,2]
[407750593,1772751047075,-500.0,5.698e-05,2]
[407750594,1772751047084,-160.36837054,5.7e-05,2]
[407750595,1772751047094,-38455.60851151,5.7e-05,2]
[407750596,1772751047103,-2190.7603601,5.706e-05,2]
[407750597,1772751047113,-177.76695783,5.706e-05,2]
[407750598,1772751047122,-607.98010891,5.818e-05,2]
[407750599,1772751047131,-2217.67074559,6e-05,2]
[407750600,1772751047140,-1116.09132271,6e-05,2]
[407750601,1772751047152,-3700.36216891,6e-05,2]
[407750602,1772751047163,-5329.94082877,6e-05,2]
[407750603,1772751047172,-653.1100652,6e-05,2]
[407750604,1772751047183,-4837.85291775,6e-05,2]
[407750605,1772751047192,-787.0,6e-05,2]
[407750606,1772751047201,-250.0,6.188e-05,2]
[407750607,1772751047211,-2190.7603601,6.333e-05,2]
[407750608,1772751047220,-669.328,6.458e-05,2]
[407750609,1772751047230,-500.0,6.5e-05,2]
[407750610,1772751047240,-186.508,6.571e-05,2]
[407750611,1772751047249,-297.51056812,6.786e-05,2]
[407750612,1772751047258,-500.0,6.8e-05,2]
[407750613,1772751047268,-361.52574616,6.867e-05,2]
[407750614,1772751047277,-243.73892035,6.961e-05,2]
[407750624,1772751941806,-1500.0,7.5e-05,30]
[407750625,1772751944103,-1500.0,7.5e-05,30]
[407750626,1772751948139,-1500.0,7.51e-05,30]
[407750627,1772751953827,-500.0,7.51e-05,30]
[407750632,1772751998681,-500.0,7.51e-05,30]
[407750635,1772752101997,-500.0,7.51e-05,30]
[407750690,1772752232024,-153.05,5e-05,2]
[407750691,1772752232037,-247.0850481,5.2e-05,2]
[407750692,1772752232046,-300.0,5.399e-05,2]
[407750693,1772752232055,-1200.0,5.399e-05,2]
[407750694,1772752232065,-629.19869045,5.4e-05,2]
[407750695,1772752232074,-1595.07007558,5.4e-05,2]
[407750696,1772752232084,-1344.89614901,5.4e-05,2]
[407750697,1772752232093,-1495.72532811,5.4e-05,2]
[407750698,1772752232102,-152.5358463,5.4e-05,2]
[407750699,1772752232111,-156.49913244,5.4e-05,2]
[407750700,1772752232120,-157.58683793,5.4e-05,2]
[407750701,1772752232130,-6908.845202,5.479e-05,2]
[407750702,1772752232139,-408.14126983,5.479e-05,2]
[407750703,1772752232148,-500.0,5.497e-05,2]
[407750704,1772752232158,-500.0,5.497e-05,2]
[407750705,1772752232168,-500.0,5.497e-05,2]
[407750706,1772752232177,-500.0,5.497e-05,2]
[407750707,1772752232186,-500.0,5.497e-05,2]
[407750708,1772752232196,-500.0,5.497e-05,2]
[407750709,1772752232205,-500.0,5.497e-05,2]
[407750710,1772752232214,-500.0,5.497e-05,2]
[407750711,1772752232223,-500.0,5.497e-05,2]
[407750712,1772752232233,-500.0,5.497e-05,2]
[407750713,1772752232242,-500.0,5.497e-05,2]
[407750714,1772752232251,-500.0,5.497e-05,2]
[407750715,1772752232260,-599.8767935,5.497e-05,2]
[407750716,1772752232270,-500.0,5.497e-05,2]
[407750717,1772752232278,-500.0,5.497e-05,2]
[407750718,1772752232288,-500.0,5.497e-05,2]
[407750719,1772752232297,-440.62121792,5.497e-05,2]
[407750720,1772752232306,-185.60326797,5.497e-05,2]
[407750721,1772752232316,-162.82390787,5.497e-05,2]
[407750722,1772752232325,-500.0,5.497e-05,2]
[407750723,1772752232334,-500.0,5.497e-05,2]
[407750724,1772752232343,-500.0,5.497e-05,2]
[407750725,1772752232353,-500.0,5.497e-05,2]
[407750726,1772752232362,-500.0,5.497e-05,2]
[407750727,1772752232374,-500.0,5.497e-05,2]
[407750728,1772752232383,-500.0,5.497e-05,2]
[407750729,1772752232392,-500.0,5.497e-05,2]
[407750730,1772752232401,-500.0,5.497e-05,2]
[407750731,1772752232410,-500.0,5.497e-05,2]
[407750732,1772752232419,-500.0,5.497e-05,2]
[407750733,1772752232428,-500.0,5.497e-05,2]
[407750734,1772752232437,-500.0,5.497e-05,2]
[407750735,1772752232446,-500.0,5.497e-05,2]
[407750736,1772752232455,-500.0,5.497e-05,2]
[407750737,1772752232464,-500.0,5.497e-05,2]
[407750738,1772752232474,-500.0,5.497e-05,2]
[407750739,1772752232483,-500.0,5.497e-05,2]
[407750740,1772752232492,-500.0,5.497e-05,2]
[407750741,1772752232501,-500.0,5.497e-05,2]
[407750742,1772752232510,-500.0,5.497e-05,2]
[407750743,1772752232519,-500.0,5.497e-05,2]
[407750744,1772752232528,-500.0,5.497e-05,2]
[407750745,1772752232537,-500.0,5.497e-05,2]
[407750746,1772752232546,-454.64558691,5.497e-05,2]
[407750747,1772752232555,-500.0,5.497e-05,2]
[407750748,1772752232564,-500.0,5.497e-05,2]
[407750749,1772752232573,-500.0,5.497e-05,2]
[407750750,1772752232582,-500.0,5.497e-05,2]
[407750751,1772752232590,-500.0,5.497e-05,2]
[407750752,1772752232599,-500.0,5.497e-05,2]
[407750753,1772752232608,-500.0,5.497e-05,2]
[407750754,1772752232617,-500.0,5.497e-05,2]
[407750755,1772752232626,-500.0,5.497e-05,2]
[407750756,1772752232635,-500.0,5.497e-05,2]
[407750757,1772752232644,-500.0,5.497e-05,2]
[407750758,1772752232653,-500.0,5.497e-05,2]
[407750759,1772752232662,-500.0,5.497e-05,2]
[407750760,1772752232671,-500.0,5.497e-05,2]
[407750761,1772752232681,-500.0,5.497e-05,2]
[407750762,1772752232691,-500.0,5.497e-05,2]
[407750763,1772752232700,-500.0,5.497e-05,2]
[407750764,1772752232709,-500.0,5.497e-05,2]
[407750765,1772752232718,-500.0,5.497e-05,2]
[407750766,1772752232728,-500.0,5.497e-05,2]
[407750767,1772752232737,-500.0,5.497e-05,2]
[407750768,1772752232746,-500.0,5.497e-05,2]
[407750769,1772752232755,-500.0,5.497e-05,2]
[407750770,1772752232764,-500.0,5.497e-05,2]
[407750771,1772752232774,-500.0,5.497e-05,2]
[407750772,1772752232783,-500.0,5.497e-05,2]
[407750773,1772752232792,-229.84848916,5.497e-05,2]
[407750774,1772752232801,-500.0,5.497e-05,2]
[407750775,1772752232810,-500.0,5.497e-05,2]
[407750776,1772752232819,-500.0,5.497e-05,2]
[407750777,1772752232829,-500.0,5.497e-05,2]
[407750778,1772752232838,-500.0,5.497e-05,2]
[407750779,1772752232847,-500.0,5.497e-05,2]
[407750780,1772752232857,-500.0,5.497e-05,2]
[407750781,1772752232866,-500.0,5.497e-05,2]
[407750782,1772752232876,-500.0,5.497e-05,2]
[407750783,1772752232885,-500.0,5.497e-05,2]
[407750784,1772752232894,-500.0,5.497e-05,2]
[407750785,1772752232903,-500.0,5.497e-05,2]
[407750786,1772752232913,-350.0,5.497e-05,2]
[407750787,1772752232922,-500.0,5.497e-05,2]
[407750788,1772752232931,-500.0,5.497e-05,2]
[407750789,1772752232940,-6056.89549222,5.498e-05,2]
[407750790,1772752232952,-532.99176296,5.498e-05,2]
[407750791,1772752232963,-525.00000162,5.498e-05,2]
[407750792,1772752232975,-2827.9130095,5.498e-05,2]
[407750822,1772752242945,-800.0,5.498e-05,2]
[407750823,1772752242959,-3965.56444962,5.498e-05,2]
[407750826,1772752245587,-72287.14910462,5.498e-05,2]
[407750992,1772753431708,-159.494274,4.633e-05,2]
[407750993,1772753431718,-252.20076145,4.681e-05,2]
[407750994,1772753431727,-173.9,5e-05,2]
[407750996,1772753431736,-194.90798448,5.088e-05,2]
[407751003,1772753437877,-2187.16932052,5.088e-05,2]
[407751004,1772753437887,-1200.0,5.099e-05,2]
[407751005,1772753437897,-176.69548925,5.1e-05,2]
[407751006,1772753437906,-234.1450819,5.1e-05,2]
[407751007,1772753437915,-218.25310727,5.1e-05,2]
[407751008,1772753437925,-227.42256226,5.1e-05,2]
[407751009,1772753437934,-190.73146564,5.1e-05,2]
[407751010,1772753437943,-268.04813211,5.1e-05,2]
[407751011,1772753437953,-278.30435642,5.1e-05,2]
[407751012,1772753437962,-254.06082264,5.1e-05,2]
[407751013,1772753437972,-500.0,5.297e-05,2]
[407751014,1772753437981,-288.87519928,5.297e-05,2]
[407751015,1772753437990,-160.06902421,5.297e-05,2]
[407751016,1772753437999,-500.0,5.297e-05,2]
[407751017,1772753438008,-500.0,5.297e-05,2]
[407751018,1772753438017,-500.0,5.297e-05,2]
[407751019,1772753438027,-330.46455869,5.297e-05,2]
[407751020,1772753438036,-500.0,5.297e-05,2]
[407751021,1772753438045,-500.0,5.297e-05,2]
[407751022,1772753438055,-500.0,5.297e-05,2]
[407751023,1772753438064,-500.0,5.297e-05,2]
[407751024,1772753438073,-256.93860215,5.297e-05,2]
[407751025,1772753438082,-65884.43614498,5.298e-05,2]
[407751026,1772753438094,-2507.84039351,5.298e-05,2]
[407751027,1772753438104,-10602.00346734,5.298e-05,2]
[407751028,1772753438115,-781.08495,5.298e-05,2]
[407751029,1772753438126,-2892.57182368,5.298e-05,2]
[407751220,1772753440385,-366.40905996,5.245e-05,2]
[407751222,1772753440394,-2358.37561392,5.298e-05,2]
[407751224,1772753440406,-1175.66510949,5.298e-05,2]
[407751381,1772753442938,-806.99127554,5.298e-05,2]
[407751382,1772753442950,-6560.50386647,5.298e-05,2]
[407751383,1772753442961,-869.01369185,5.298e-05,2]
[407751386,1772753443102,-415.20624435,5.298e-05,2]
[407751387,1772753443116,-1504.3502,5.298e-05,2]
[407751388,1772753443127,-22806.38983847,5.298e-05,2]
[407751389,1772753443150,-11630.40653604,5.298e-05,2]
[407751390,1772753445753,-84901.60772401,5.298e-05,2]
[407751391,1772753445764,-404.05345588,5.298e-05,2]
[407751392,1772753468536,-300.0,5.297e-05,2]
[407751393,1772753468581,-1054.48428295,5.298e-05,2]
[407751395,1772753497735,-300.0,5.298e-05,2]
[407751424,1772753883569,170.43,3.8e-06,2]
[407751425,1772753883866,170.42,3.8e-06,2]
[407751585,1772754631928,-560.51545593,4.124e-05,2]
[407751587,1772754631939,-775.00611681,4.124e-05,2]
[407751590,1772754631951,-1522.79617566,4.124e-05,2]
[407751592,1772754631960,-3172.08552238,4.166e-05,2]
[407751594,1772754631972,-1827.91447762,4.166e-05,2]
[407751596,1772754631981,-161.86716562,4.208e-05,2]
[407751598,1772754631990,-1445.3018112,4.295e-05,2]
[407751600,1772754632002,-597.0,4.295e-05,2]
[407752044,1772754638029,-1583.86677274,4.295e-05,2]
[407752045,1772754638040,-1373.83141606,4.295e-05,2]
[407752046,1772754638049,-300.0,4.426e-05,2]
[407752047,1772754638058,-247.15674622,4.587e-05,2]
[407752048,1772754638067,-239.68348731,4.753e-05,2]
[407752049,1772754638076,-9451.87761813,4.9e-05,2]
[407752050,1772754638087,-283.721,4.9e-05,2]
[407752063,1772754640531,-1178.52779707,4.252e-05,2]
[407752079,1772754643297,-570.0,4.252e-05,2]
[407752092,1772754646014,-2876.45523093,4.252e-05,2]
[407752093,1772754646024,-3301.99145723,4.9e-05,2]
[407752094,1772754646041,-5624.1384779,4.9e-05,2]
[407752104,1772755684717,238.61,3.8e-06,2]
[407752135,1772755832106,-785.13225325,4.63e-05,2]
[407752141,1772755832161,-2465.49937987,4.63e-05,2]
[407752441,1772755838173,-1749.36836688,4.63e-05,2]
[407752443,1772755838183,-242.2136113,4.677e-05,2]
[407752445,1772755838192,-67613.16481827,4.7e-05,2]
[407752446,1772755838203,-809.1031,4.7e-05,2]
[407752447,1772755838214,-15887.93598147,4.7e-05,2]
[407752459,1772755840779,-841.52588397,4.7e-05,2]
[407752481,1772755843295,-806.99127554,4.7e-05,2]
[407752482,1772755843307,-2218.61898699,4.7e-05,2]
[407752483,1772755843318,-2459.88076605,4.7e-05,2]
[407752484,1772755843336,-3476.33145951,4.7e-05,2]
[407752485,1772755843377,-4587.0657763,4.7e-05,2]
[407752486,1772755843391,-302.62139999,4.7e-05,2]
[407752487,1772755843401,-398.01883013,4.7e-05,2]
[407752502,1772755846766,-106929.37399287,4.7e-05,2]
[407752503,1772755846778,-13150.3115858,4.7e-05,2]
[407752504,1772755846789,-3624.22639118,4.7e-05,2]
[407752505,1772755846802,-3396.45626137,4.7e-05,2]
[407752506,1772755846815,-983.43426962,4.7e-05,2]
[407752507,1772755846827,-17358.80346027,4.7e-05,2]
[407752542,1772757032322,-407.03070456,4.083e-05,2]
[407752547,1772757032360,-1547.45357839,4.083e-05,2]
[407752549,1772757032369,-247.99301974,4.166e-05,2]
[407752551,1772757032379,-2442.391042,4.294e-05,2]
[407752553,1772757032388,-250.0,4.324e-05,2]
[407752555,1772757032399,-300.0,4.398e-05,2]
[407752557,1772757032417,-155.0,4.398e-05,2]
[407752559,1772757032427,-300.0,4.398e-05,2]
[407752561,1772757032437,-1200.0,4.399e-05,2]
[407752563,1772757032450,-3408.49506441,4.4e-05,2]
[407752567,1772757032471,-780.30630423,4.4e-05,2]
[407752569,1772757032485,-1320.0708887,4.4e-05,2]
[407752571,1772757032497,-1006.81783792,4.4e-05,2]
[407752690,1772757039061,-3579.41366766,4.4e-05,2]
[407752692,1772757039072,-1160.22783125,4.4e-05,2]
[407752694,1772757039083,-3422.9437526,4.4e-05,2]
[407752696,1772757039092,-6307.82771245,4.4e-05,2]
[407752787,1772757041070,-1179.13711352,4.4e-05,2]
[407752796,1772757043529,-1426.74959545,4.4e-05,2]
[407752797,1772757043541,-589.27313473,4.4e-05,2]
[407752798,1772757043551,-171.86083369,4.4e-05,2]
[407752799,1772757043560,-1254.88876176,4.475e-05,2]
[407752805,1772757046763,-1187.50228024,4.475e-05,2]
[407752806,1772757046774,-93990.25214156,4.5e-05,2]
[407752809,1772757046803,-14809.23272423,4.5e-05,2]
[407752810,1772757046842,-46183.89218306,4.5e-05,2]
[407752811,1772757046855,-4280.27399685,4.5e-05,2]
[407752812,1772757046880,-5233.88109999,4.5e-05,2]
[407752813,1772757047007,-441.315,4.5e-05,2]
[407752822,1772757483703,167.01,3.8e-06,2]
[407752849,1772758232351,-3083.37552296,3.441e-05,2]
[407753044,1772758241029,-359.39680267,3.441e-05,2]
[407753045,1772758241038,-257.48014069,3.458e-05,2]
[407753046,1772758241049,-701.2863973,3.493e-05,2]
[407753047,1772758241059,-196.1188304,3.925e-05,2]
[407753048,1772758241070,-281.0,4.453e-05,2]
[407753049,1772758241080,-300.0,4.454e-05,2]
[407753050,1772758241091,-300.0,4.454e-05,2]
[407753051,1772758241102,-300.0,4.454e-05,2]
[407753052,1772758241112,-2042.07414375,4.455e-05,2]
[407753053,1772758241123,-3025.051694,4.455e-05,2]
[407753054,1772758241135,-3974.47067958,4.455e-05,2]
[407753074,1772758246419,-775.43288427,4.455e-05,2]
[407753075,1772758246579,-73559.5637763,4.455e-05,2]
[407753076,1772758246588,-231.58717059,4.5e-05,2]
[407753077,1772758246598,-206.28983328,4.5e-05,2]
[407753078,1772758246607,-158.53328344,4.5e-05,2]
[407753079,1772758246616,-400.97868007,4.547e-05,2]
[407753080,1772758246626,-3029.6373115,4.601e-05,2]
[407753081,1772758246635,-1978.9002761,4.601e-05,2]
[407753082,1772758246644,-3037.31277626,4.601e-05,2]
[407753083,1772758246659,-85567.63724384,4.601e-05,2]
[407753084,1772758246668,-152.0415347,4.601e-05,2]
[407753085,1772758246678,-2442.391042,4.655e-05,2]
[407753086,1772758246688,-2442.391042,4.836e-05,2]
[407753087,1772758246698,-600.0,4.895e-05,2]
[407753088,1772758246708,-206.3,5e-05,2]
[407753089,1772758246717,-152.12,5e-05,2]
[407753090,1772758246726,-152.12,5e-05,2]
[407753091,1772758246735,-150.07,5e-05,2]
[407753092,1772758246745,-500.0,5e-05,2]
[407753093,1772758246757,-500.0,5e-05,2]
[407753094,1772758246767,-500.0,5e-05,2]
[407753095,1772758246776,-500.0,5e-05,2]
[407753096,1772758246785,-500.0,5e-05,2]
[407753097,1772758246794,-500.0,5e-05,2]
[407753098,1772758246805,-500.0,5e-05,2]
[407753099,1772758246814,-500.0,5e-05,2]
[407753100,1772758246823,-500.0,5e-05,2]
[407753101,1772758246833,-500.0,5e-05,2]
[407753102,1772758246842,-500.0,5e-05,2]
[407753103,1772758246851,-500.0,5e-05,2]
[407753104,1772758246860,-500.0,5e-05,2]
[407753105,1772758246869,-500.0,5e-05,2]
[407753106,1772758246878,-500.0,5e-05,2]
[407753107,1772758246887,-500.0,5e-05,2]
[407753108,1772758246896,-500.0,5e-05,2]
[407753109,1772758246905,-475.72490675,5e-05,2]
[407753110,1772758246914,-500.0,5e-05,2]
[407753111,1772758246924,-500.0,5e-05,2]
[407753112,1772758246932,-500.0,5e-05,2]
[407753113,1772758246942,-500.0,5e-05,2]
[407753114,1772758246951,-500.0,5e-05,2]
[407753115,1772758246960,-500.0,5e-05,2]
[407753116,1772758246969,-500.0,5e-05,2]
[407753117,1772758246978,-500.0,5e-05,2]
[407753118,1772758246987,-500.0,5e-05,2]
[407753119,1772758246996,-500.0,5e-05,2]
[407753120,1772758247005,-500.0,5e-05,2]
[407753121,1772758247014,-500.0,5e-05,2]
[407753122,1772758247023,-471.47230089,5e-05,2]
[407753123,1772758247032,-500.0,5e-05,2]
[407753124,1772758247041,-500.0,5e-05,2]
[407753125,1772758247050,-500.0,5e-05,2]
[407753126,1772758247059,-500.0,5e-05,2]
[407753127,1772758247069,-500.0,5e-05,2]
[407753128,1772758247078,-500.0,5e-05,2]
[407753129,1772758247087,-500.0,5e-05,2]
[407753130,1772758247097,-500.0,5e-05,2]
[407753131,1772758247108,-500.0,5e-05,2]
[407753132,1772758247118,-500.0,5e-05,2]
[407753133,1772758247126,-500.0,5e-05,2]
[407753134,1772758247135,-500.0,5e-05,2]
[407753135,1772758247144,-500.0,5e-05,2]
[407753136,1772758247154,-500.0,5e-05,2]
[407753137,1772758247163,-500.0,5e-05,2]
[407753138,1772758247172,-500.0,5e-05,2]
[407753139,1772758247181,-500.0,5e-05,2]
[407753140,1772758247190,-500.0,5e-05,2]
[407753141,1772758247199,-500.0,5e-05,2]
[407753142,1772758247208,-500.0,5e-05,2]
[407753143,1772758247217,-500.0,5e-05,2]
[407753144,1772758247226,-500.0,5e-05,2]
[407753145,1772758247235,-182.07938254,5e-05,2]
[407753146,1772758247244,-500.0,5e-05,2]
[407753147,1772758247252,-315.51708169,5e-05,2]
[407753222,1772759431522,-425.97873272,4.481e-05,2]
[407753229,1772759431576,-702.43069068,4.481e-05,2]
[407753231,1772759431588,-1657.82132549,4.481e-05,2]
[407753233,1772759431597,-5000.0,4.526e-05,2]
[407753235,1772759431606,-202.0,4.594e-05,2]
[407753237,1772759431615,-173.94538853,4.595e-05,2]
[407753275,1772759437757,-89.07828919,4.595e-05,2]
[407753277,1772759437767,-814.130347,4.618e-05,2]
[407753279,1772759437776,-300.0,4.799e-05,2]
[407753281,1772759437785,-300.0,4.799e-05,2]
[407753283,1772759437794,-7911.01972459,4.8e-05,2]
[407753285,1772759437804,-9534.93078882,4.8e-05,2]
[407753287,1772759437814,-8816.06358089,4.8e-05,2]
[407753289,1772759437823,-3840.52631633,4.8e-05,2]
[407753291,1772759437832,-9721.10743726,4.8e-05,2]
[407753293,1772759437842,-814.130347,4.812e-05,2]
[407753295,1772759437851,-1339227.98869545,4.996e-05,2]
[407753297,1772759437866,-2712.50310815,4.996e-05,2]
[407753474,1772759442756,-254.35562995,4.549e-05,2]
[407753475,1772759442768,-169.23980413,4.549e-05,2]
[407753476,1772759442778,-24738.77992296,4.996e-05,2]
[407753477,1772759442789,-614.01708605,4.996e-05,2]
[407753492,1772759445907,-257.76320416,4.773e-05,2]
[407753493,1772759445917,-5807.74976922,4.996e-05,2]
[407753494,1772759445928,-9617.03899106,4.996e-05,2]
[407753495,1772759445940,-337.2,4.996e-05,2]
[407753496,1772759445951,-7386.93076629,4.996e-05,2]
[407753497,1772759445962,-927.19930424,4.996e-05,2]
[407753499,1772759677119,4808.1818717,0.00015709,120]
[407753500,1772759686408,5400.0,0.000122,120]
[407753501,1772759686438,4600.0,0.000122,120]
[407753502,1772759708107,800.0,0.000122,120]
[407753503,1772759708134,5400.0,0.000122,120]
[407753504,1772759715758,10000.0,0.00010512,120]
[407753505,1772759731717,488.65129311,0.00012,60]
[407753506,1772759738001,687.594476,0.000116,60]
[407753507,1772759738027,2800.0,0.000116,60]
[407753508,1772759738053,2800.0,0.000116,60]
[407753510,1772759774455,10000.0,0.000115,60]
[407753511,1772759785897,10000.0,0.000115,60]
[407753561,1772760631796,-647.79398652,3.93e-05,2]
[407753563,1772760631805,-263.14578358,4.031e-05,2]
[407753565,1772760631815,-253.4355614,4.091e-05,2]
[407753567,1772760631824,-6.66347476,4.7e-05,2]
[407753659,1772760637967,-155.65684629,4.7e-05,2]